bitfinex/quotes_SOLUSD_20241218
["timestamp","ask_amount","ask_price","bid_price","bid_amount"]
[1734502489174,0.5695236,216.05,216.01,7.24703035]
[1734502489372,0.5695236,216.05,216.03,7.24703035]
[1734502489592,0.5695236,216.05,216.04,7.24703035]
[1734502489966,0.5695236,216.05,216.04,8.80533035]
[1734502491864,0.5695236,216.05,216.04,9.49942499]
[1734502492285,0.68123014,216.16,216.07,20.0]
[1734502492489,0.68123014,216.18,216.09,7.24703035]
[1734502492685,7.24703035,216.16,216.09,7.24703035]
[1734502493071,0.68123014,216.18,216.1,7.24703035]
[1734502493266,7.24703035,216.17,216.1,7.24703035]
[1734502493465,7.92826049,216.18,216.11,7.24703035]
[1734502495772,7.92826049,216.18,216.08,2.597489]
[1734502495964,7.92826049,216.18,216.08,22.597489]
[1734502496164,7.92826049,216.18,216.1,7.24703035]
[1734502496586,7.24703035,216.17,216.1,7.24703035]
[1734502496791,0.68123014,216.22,216.12,7.24703035]
[1734502496964,7.24703035,216.2,216.12,7.24703035]
[1734502497164,7.24703035,216.19,216.12,7.24703035]
[1734502497388,0.68123014,216.26,216.12,8.80533035]
[1734502497565,7.24703035,216.2,216.13,7.24703035]
[1734502497768,7.92826049,216.19,216.12,1.5583]
[1734502497964,7.24703035,216.18,216.12,1.5583]
[1734502498169,7.24703035,216.19,216.12,1.5583]
[1734502498581,7.24703035,216.19,216.12,8.80533035]
[1734502499164,7.24703035,216.19,216.12,1.5583]
[1734502499764,7.92826049,216.18,216.12,1.5583]
[1734502499965,7.24703035,216.16,216.12,1.5583]
[1734502500366,28.9881214,216.26,216.08,1.90294365]
[1734502500367,7.24703035,216.13,216.08,1.90294365]
[1734502500660,7.24703035,216.13,216.07,1.5583]
[1734502501179,7.24703035,216.14,216.07,8.80533035]
[1734502501565,7.24703035,216.15,216.08,7.24703035]
[1734502501792,7.24703035,216.15,216.07,1.5583]
[1734502501793,7.24703035,216.13,216.07,1.5583]
[1734502504268,0.68123014,216.12,216.07,1.5583]
[1734502505185,7.92826049,216.12,216.07,1.5583]
[1734502505381,0.68123014,216.12,216.07,1.5583]
[1734502506577,7.24703035,216.13,216.07,1.5583]
[1734502507076,0.68123014,216.12,216.07,1.5583]
[1734502507605,7.24703035,216.13,216.07,1.5583]
[1734502507967,7.92826049,216.12,216.04,9.15247766]
[1734502508191,7.92826049,216.12,216.04,7.24703035]
[1734502508504,7.92826049,216.12,216.04,9.15437834]
[1734502508710,7.24703035,216.08,216.02,1.5179]
[1734502508872,7.24703035,216.07,216.02,1.5179]
[1734502509771,7.24703035,216.05,215.98,9.15483854]
[1734502509988,7.24703035,216.07,215.99,14.19173035]
[1734502510279,0.68123014,216.11,216.03,7.24703035]
[1734502510280,7.24703035,216.1,216.03,7.24703035]
[1734502510478,7.24703035,216.12,216.04,7.24703035]
[1734502510818,7.24703035,216.12,216.05,7.24703035]
[1734502510971,7.24703035,216.11,216.04,7.24703035]
[1734502511180,7.92826049,216.11,216.04,7.24703035]
[1734502511407,7.24703035,216.11,216.04,7.24703035]
[1734502511615,7.24703035,216.11,216.03,9.15483854]
[1734502511977,7.24703035,216.09,216.03,1.90780819]
[1734502512783,7.24703035,216.1,216.03,1.90780819]
[1734502513222,7.92826049,216.09,216.03,1.90780819]
[1734502513512,7.24703035,216.09,216.03,1.90780819]
[1734502514075,11.30230628,216.1,216.03,13.21011447]
[1734502514308,11.30230628,216.1,216.04,1.90780819]
[1734502514888,11.30230628,216.09,216.04,1.90780819]
[1734502515091,11.30230628,216.09,216.03,1.91327855]
[1734502517115,11.30230628,216.08,216.03,1.91327855]
[1734502517513,11.30230628,216.09,216.03,1.91327855]
[1734502517897,11.30230628,216.09,216.02,31.30230628]
[1734502518096,11.30230628,216.09,215.99,6.9447]
[1734502518097,11.30230628,216.05,216.03,1.91441301]
[1734502518323,11.30230628,216.05,215.99,1.91441301]
[1734502518505,11.30230628,216.05,216.0,1.91457234]
[1734502518715,0.68123014,216.04,216.01,1.91457234]
[1734502519054,0.68123014,216.04,216.02,1.91457234]
[1734502519237,11.30230628,216.05,215.99,1.91457234]
[1734502519439,0.68123014,216.13,215.99,1.91457234]
[1734502519440,11.30230628,216.06,216.0,1.91457234]
[1734502519640,11.30230628,216.09,216.01,13.21687862]
[1734502519798,11.30230628,216.1,216.03,11.30230628]
[1734502520000,11.30230628,216.11,216.04,13.21687862]
[1734502520314,11.30230628,216.11,216.05,1.91457234]
[1734502521117,0.68123014,216.16,216.06,11.30230628]
[1734502521331,11.30230628,216.13,216.07,1.91522717]
[1734502521517,0.68123014,216.12,216.07,1.91522717]
[1734502521944,11.98353642,216.12,216.07,1.91522717]
[1734502522103,11.98353642,216.12,216.06,1.91522717]
[1734502522303,11.30230628,216.11,216.06,1.91522717]
[1734502522535,11.30230628,216.11,216.05,1.91522717]
[1734502522751,11.30230628,216.12,216.05,1.91522717]
[1734502522949,0.68123014,216.11,216.05,1.91522717]
[1734502523320,0.68123014,216.11,216.06,1.91522717]
[1734502523655,11.30230628,216.12,216.05,1.91522717]
[1734502524249,11.30230628,216.12,216.06,1.91522717]
[1734502524552,11.30230628,216.12,216.05,1.91522717]
[1734502524719,0.68123014,216.11,216.06,1.91728691]
[1734502524920,0.68123014,216.11,216.05,1.91728691]
[1734502525119,0.68123014,216.11,216.04,11.30230628]
[1734502525120,0.68123014,216.11,216.06,1.91728691]
[1734502525451,0.68123014,216.11,216.05,1.91728691]
[1734502525664,0.68123014,216.11,216.06,1.91728691]
[1734502525952,0.68123014,216.11,216.05,1.91728691]
[1734502526176,0.68123014,216.11,216.06,1.91728691]
[1734502526439,0.68123014,216.11,216.05,1.91728691]
[1734502526652,11.30230628,216.1,216.06,1.91728691]
[1734502526834,11.30230628,216.1,216.05,1.91728691]
[1734502527148,11.30230628,216.1,216.06,1.91728691]
[1734502527337,11.30230628,216.1,216.07,1.91728691]
[1734502527545,11.30230628,216.1,216.05,1.91728691]
[1734502527731,11.98353642,216.09,216.06,1.91728691]
[1734502527931,11.30230628,216.09,216.02,1.91728691]
[1734502528117,11.30230628,216.09,216.03,1.91728691]
[1734502528463,11.30230628,216.09,216.04,1.91728691]
[1734502528610,11.30230628,216.09,216.05,1.91728691]
[1734502528813,11.30230628,216.09,216.02,13.21959319]
[1734502529121,11.30230628,216.09,215.98,0.69421686]
[1734502529122,11.30230628,216.11,216.03,20.16299319]
[1734502529319,11.30230628,216.11,216.04,1.91728691]
[1734502529547,11.30230628,216.11,216.05,1.91728691]
[1734502529722,11.30230628,216.11,216.06,1.91728691]
[1734502529922,11.30230628,216.11,216.04,1.91728691]
[1734502530122,11.30230628,216.11,216.03,18.24570628]
[1734502530123,11.30230628,216.11,216.05,1.91728691]
[1734502530349,11.30230628,216.11,216.06,1.91728691]
[1734502530674,11.30230628,216.11,216.03,18.24570628]
[1734502530675,11.30230628,216.11,216.04,1.91728691]
[1734502530963,0.68123014,216.1,216.05,1.91728691]
[1734502531173,11.30230628,216.11,216.06,3.44208691]
[1734502531469,11.30230628,216.11,216.06,1.5248]
[1734502531843,11.30230628,216.11,216.06,3.44208691]
[1734502532040,11.30230628,216.11,216.06,1.5248]
[1734502532245,11.30230628,216.09,216.07,1.91728691]
[1734502534080,7.23361609,216.09,216.07,1.91728691]
[1734502535777,7.23361609,216.1,216.07,1.91728691]
[1734502535949,0.68123014,216.09,216.07,1.91728691]
[1734502537847,7.91484623,216.09,216.07,1.91728691]
[1734502538160,7.91484623,216.09,216.02,1.91728691]
[1734502538364,7.91484623,216.09,216.03,1.91728691]
[1734502538568,7.91484623,216.09,216.04,1.91728691]
[1734502538770,0.68123014,216.09,216.05,1.91728691]
[1734502538950,7.23361609,216.1,216.06,1.91728691]
[1734502539149,0.68123014,216.09,216.07,1.91728691]
[1734502539344,0.68123014,216.09,216.03,1.91728691]
[1734502539677,0.68123014,216.09,216.04,1.91728691]
[1734502539885,7.23361609,216.12,216.05,1.91728691]
[1734502540178,0.68123014,216.11,216.06,1.91728691]
[1734502540355,0.68123014,216.11,216.07,1.91728691]
[1734502540561,0.68123014,216.11,216.04,7.23361609]
[1734502540785,0.68123014,216.11,216.05,1.92131175]
[1734502541079,0.68123014,216.11,216.06,1.92131175]
[1734502541242,7.91484623,216.11,216.07,1.92131175]
[1734502541632,7.91484623,216.11,216.08,1.92131175]
[1734502541877,7.91484623,216.11,216.04,1.92131175]
[1734502542083,7.91484623,216.11,216.05,1.92131175]
[1734502542372,7.91484623,216.11,216.06,1.92131175]
[1734502542580,7.91484623,216.11,216.07,1.92131175]
[1734502542781,7.91484623,216.11,216.08,1.92131175]
[1734502542978,0.68123014,216.11,216.09,1.92131175]
[1734502543155,7.23361609,216.1,216.02,9.15492784]
[1734502543484,7.23361609,216.09,216.03,1.92312973]
[1734502543791,7.23361609,216.09,216.04,1.92314698]
[1734502543953,7.23361609,216.09,216.05,1.92314698]
[1734502544155,7.23361609,216.09,216.06,1.92314698]
[1734502544355,7.23361609,216.09,216.07,1.92314698]
[1734502544575,7.23361609,216.09,216.08,1.92314698]
[1734502545075,20.0,216.13,216.08,1.92314698]
[1734502545257,7.23361609,216.09,216.02,7.23361609]
[1734502545470,7.23361609,216.09,216.03,1.92419233]
[1734502545687,7.23361609,216.09,216.04,1.92419233]
[1734502545993,7.23361609,216.09,216.05,1.92419233]
[1734502546177,7.23361609,216.09,216.06,1.92419233]
[1734502546491,7.23361609,216.09,216.07,1.92419233]
[1734502546675,7.23361609,216.09,216.08,1.92419233]
[1734502550161,7.23361609,216.09,216.02,1.92476589]
[1734502550364,7.23361609,216.05,216.01,1.5111]
[1734502550583,7.23361609,216.05,216.03,1.92478193]
[1734502550774,7.23361609,216.05,216.04,1.92478193]
[1734502551465,0.68123014,216.11,216.04,1.92478193]
[1734502551466,0.68123014,216.12,216.04,1.92478193]
[1734502551696,7.23361609,216.06,216.05,1.92478193]
[1734502552399,7.23361609,216.06,216.05,1.92426379]
[1734502553715,7.23361609,216.06,216.05,1.92409853]
[1734502554009,7.23361609,216.06,216.01,1.5111]
[1734502554216,7.23361609,216.06,216.05,1.92409968]
[1734502557021,7.23361609,216.06,216.05,1.92365316]
[1734502559217,0.68123014,216.1,216.05,1.92365316]
[1734502559430,7.23361609,216.08,216.06,1.92365316]
[1734502559604,7.23361609,216.08,216.07,1.92365316]
[1734502560218,7.23361609,216.08,216.01,8.74471609]
[1734502560424,7.23361609,216.08,216.02,1.92308509]
[1734502560626,7.23361609,216.08,216.03,1.92308509]
[1734502560792,7.23361609,216.08,216.04,1.92308509]
[1734502560990,7.23361609,216.08,216.05,1.92308509]
[1734502561218,7.23361609,216.08,216.06,1.92308509]
[1734502561427,20.68123014,216.12,216.07,1.92308509]
[1734502561625,20.68123014,216.12,216.02,7.23361609]
[1734502561799,7.23361609,216.08,216.03,1.92312964]
[1734502562127,7.23361609,216.08,216.04,1.92312964]
[1734502562292,7.23361609,216.08,216.01,8.74471609]
[1734502562612,7.23361609,216.08,216.02,1.9233961]
[1734502562813,7.23361609,216.08,216.03,1.9233961]
[1734502563013,7.23361609,216.08,216.04,1.9233961]
[1734502563206,20.68123014,216.12,216.05,1.9233961]
[1734502563525,7.23361609,216.08,216.06,1.9233961]
[1734502563689,7.23361609,216.08,216.07,1.9233961]
[1734502563886,7.23361609,216.08,216.02,1.9233961]
[1734502564192,7.23361609,216.08,216.03,1.9233961]
[1734502564420,7.23361609,216.08,216.04,1.9233961]
[1734502564731,7.23361609,216.08,216.05,1.9233961]
[1734502564904,7.23361609,216.08,216.06,1.9233961]
[1734502565109,7.23361609,216.08,216.07,1.9233961]
[1734502565330,7.23361609,216.08,216.02,1.9233961]
[1734502565488,7.23361609,216.06,216.03,1.9233961]
[1734502565693,7.23361609,216.06,216.04,1.92360235]
[1734502565890,7.23361609,216.06,216.05,1.92360235]
[1734502567437,7.23361609,216.06,216.02,1.92360235]
[1734502567738,0.68123014,216.05,216.03,1.92360235]
[1734502567950,0.68123014,216.05,216.02,1.92360235]
[1734502568165,0.68123014,216.05,216.03,1.92360235]
[1734502568320,0.68123014,216.05,216.02,1.92360235]
[1734502568655,0.68123014,216.05,216.03,1.92360235]
[1734502568857,0.68123014,216.09,216.01,1.5111]
[1734502569159,7.23361609,216.06,216.02,1.9234804]
[1734502569315,7.23361609,216.06,216.03,1.9234804]
[1734502569522,7.23361609,216.06,216.04,1.9234804]
[1734502569739,7.23361609,216.05,216.02,1.92338266]
[1734502569938,7.23361609,216.05,216.03,1.92338266]
[1734502570225,7.23361609,216.05,216.04,1.92338266]
[1734502570427,7.23361609,216.05,216.02,1.92338266]
[1734502570625,7.23361609,216.03,215.98,1.92338266]
[1734502570961,7.23361609,216.01,215.99,1.92338266]
[1734502571121,7.91484623,216.0,215.96,1.5767]
[1734502571324,7.23361609,215.98,215.97,1.92242441]
[1734502572036,7.23361609,215.98,215.91,1.5767]
[1734502572258,7.23361609,215.94,215.92,1.92226463]
[1734502572561,7.23361609,215.94,215.93,1.92071201]
[1734502572864,7.23361609,215.95,215.92,1.92071201]
[1734502573164,7.23361609,215.95,215.93,1.92071201]
[1734502573366,7.23361609,215.95,215.92,1.92071201]
[1734502574354,7.23361609,215.94,215.88,1.92071201]
[1734502574528,7.23361609,215.94,215.89,1.92071201]
[1734502574729,7.91484623,215.93,215.9,1.92071201]
[1734502575034,7.91484623,215.93,215.87,1.92071201]
[1734502575237,7.23361609,215.9,215.88,1.92071201]
[1734502575457,7.23361609,215.89,215.85,1.92071201]
[1734502575668,7.23361609,215.88,215.84,1.5767]
[1734502576042,7.23361609,215.89,215.84,3.49741201]
[1734502576240,7.23361609,215.89,215.84,1.5767]
[1734502576856,20.0,215.93,215.84,1.5767]
[1734502577062,7.23361609,215.9,215.84,1.5767]
[1734502578261,0.68123014,215.95,215.87,7.23361609]
[1734502578577,7.23361609,215.94,215.87,7.23361609]
[1734502579149,0.68123014,215.93,215.85,21.9141561]
[1734502579453,0.68123014,215.93,215.86,9.14777219]
[1734502579661,7.23361609,215.94,215.86,9.14777219]
[1734502579847,7.23361609,215.93,215.86,9.14777219]
[1734502580248,0.68123014,215.96,215.87,7.23361609]
[1734502580443,7.23361609,215.93,215.86,1.9141561]
[1734502580698,7.23361609,215.93,215.86,9.14777219]
[1734502580986,7.23361609,215.94,215.87,7.23361609]
[1734502581144,7.91484623,215.93,215.86,9.14777219]
[1734502581345,7.23361609,215.93,215.86,9.14777219]
[1734502583559,0.68123014,215.92,215.86,9.14777219]
[1734502583756,0.68123014,215.92,215.86,1.9141561]
[1734502583960,7.23361609,215.93,215.86,9.14777219]
[1734502584355,7.23361609,215.94,215.87,7.23361609]
[1734502587650,0.68123014,215.93,215.87,7.23361609]
[1734502587858,7.23361609,215.92,215.85,20.0]
[1734502588062,7.23361609,215.92,215.87,1.91005936]
[1734502588272,7.23361609,215.92,215.86,1.91005936]
[1734502588787,7.23361609,215.89,215.86,1.91005936]
[1734502588990,7.23361609,215.88,215.84,1.5767]
[1734502589486,7.23361609,215.89,215.84,1.5767]
[1734502589783,7.23361609,215.9,215.84,1.5767]
[1734502590151,7.23361609,215.9,215.84,8.81031609]
[1734502590386,7.23361609,215.9,215.84,1.5767]
[1734502590594,0.68123014,215.89,215.84,1.5767]
[1734502591564,7.91484623,215.89,215.84,1.5767]
[1734502592698,0.68123014,215.89,215.84,1.5767]
[1734502593167,20.0,215.93,215.84,1.5767]
[1734502593168,7.23361609,215.9,215.84,1.5767]
[1734502593486,0.68123014,215.89,215.84,1.5767]
[1734502596289,0.68123014,215.92,215.85,7.23361609]
[1734502596461,7.91484623,215.92,215.85,7.23361609]
[1734502600510,7.91484623,215.92,215.84,1.5767]
[1734502600511,0.68123014,215.95,215.87,7.23361609]
[1734502600694,7.23361609,215.94,215.87,7.23361609]
[1734502601568,7.91484623,215.93,215.86,7.23361609]
[1734502602788,7.23361609,215.92,215.85,9.14396197]
[1734502602985,0.68123014,215.91,215.86,1.91034588]
[1734502603305,7.23361609,215.92,215.85,7.23361609]
[1734502603483,0.68123014,215.91,215.85,7.23361609]
[1734502603896,0.68123014,215.91,215.85,9.14439431]
[1734502604077,0.68123014,215.91,215.86,1.91077822]
[1734502604807,0.68123014,215.91,215.86,9.14439431]
[1734502604974,7.23361609,215.93,215.87,1.91077822]
[1734502605169,0.68123014,215.92,215.87,1.91077822]
[1734502605487,7.23361609,215.92,215.85,7.23361609]
[1734502605697,0.68123014,215.91,215.85,7.23361609]
[1734502606209,7.23361609,215.92,215.85,7.23361609]
[1734502607294,7.23361609,215.93,215.86,7.23361609]
[1734502607537,0.68123014,215.92,215.86,7.23361609]
[1734502608184,7.23361609,215.93,215.86,7.23361609]
[1734502608511,7.23361609,215.93,215.86,9.14439431]
[1734502608692,7.23361609,215.93,215.87,1.91077822]
[1734502609239,7.23361609,215.94,215.87,9.14439431]
[1734502609387,7.23361609,215.94,215.88,1.91077822]
[1734502609588,7.23361609,215.94,215.87,7.23361609]
[1734502610079,7.23361609,215.94,215.87,9.14439431]
[1734502610279,7.23361609,215.94,215.87,7.23361609]
[1734502610511,7.23361609,215.94,215.88,1.91608162]
[1734502611413,7.23361609,215.94,215.89,1.91608162]
[1734502611724,7.23361609,215.94,215.9,1.91608162]
[1734502611904,7.23361609,215.94,215.88,1.91608162]
[1734502612092,7.23361609,215.94,215.89,1.91608162]
[1734502612292,7.23361609,215.94,215.9,1.91608162]
[1734502612496,7.23361609,215.94,215.88,1.91608162]
[1734502612692,7.23361609,215.94,215.89,1.91608162]
[1734502612901,7.23361609,215.94,215.9,1.91608162]
[1734502613104,7.91484623,215.93,215.91,1.91608162]
[1734502613289,0.68123014,215.93,215.92,1.91608162]
[1734502613492,9.2605,215.97,215.86,7.23361609]
[1734502613723,7.23361609,215.93,215.87,1.91608162]
[1734502613903,7.23361609,215.94,215.88,1.91608162]
[1734502614219,7.23361609,215.94,215.89,1.91608162]
[1734502614430,7.23361609,215.94,215.9,1.91608162]
[1734502614728,7.23361609,215.94,215.91,1.91608162]
[1734502614907,0.68123014,215.93,215.92,1.91608162]
[1734502615105,0.68123014,215.93,215.88,1.91608162]
[1734502615291,0.68123014,215.93,215.89,1.91608162]
[1734502615492,7.23361609,215.94,215.9,1.91608162]
[1734502615693,7.23361609,215.94,215.91,1.91608162]
[1734502615889,7.23361609,215.94,215.92,1.91608162]
[1734502616117,7.23361609,215.94,215.93,1.91608162]
[1734502616595,7.23361609,215.94,215.87,7.23361609]
[1734502616791,7.23361609,215.94,215.93,1.92278848]
[1734502619896,7.23361609,215.94,215.93,1.92322383]
[1734502622157,7.23361609,215.94,215.86,27.23361609]
[1734502622299,23.776884,215.98,215.93,1.92334417]
[1734502622640,23.776884,215.98,215.94,1.92334417]
[1734502622800,23.776884,215.98,215.95,1.92334417]
[1734502622997,23.776884,215.98,215.86,27.23361609]
[1734502623242,7.23361609,215.93,215.87,1.92340626]
[1734502623541,23.776884,215.98,215.88,1.92340626]
[1734502623837,7.23361609,215.94,215.89,1.92340626]
[1734502624013,7.23361609,215.94,215.9,1.92340626]
[1734502624224,0.68123014,215.93,215.91,1.92340626]
[1734502624423,0.68123014,215.93,215.92,1.92340626]
[1734502625118,7.23361609,215.93,215.92,1.92340626]
[1734502625443,7.23361609,215.93,215.92,1.92339693]
[1734502626016,7.23361609,215.95,215.92,1.92339693]
[1734502626207,0.68123014,215.94,215.93,1.92339693]
[1734502628549,0.68123014,215.94,215.93,1.92328493]
[1734502628857,7.23361609,215.94,215.93,1.92328493]
[1734502630020,16.49541609,215.94,215.93,1.92328493]
[1734502630236,16.49541609,215.94,215.85,1.92328493]
[1734502630438,7.23361609,215.89,215.86,1.92328493]
[1734502630642,7.23361609,215.89,215.87,1.92328493]
[1734502630817,7.23361609,215.9,215.88,1.92328493]
[1734502631017,7.23361609,215.9,215.89,1.92328493]
[1734502631214,7.23361609,215.9,215.84,1.5767]
[1734502631858,7.23361609,215.91,215.84,1.5767]
[1734502632025,7.23361609,215.9,215.84,1.5767]
[1734502632830,23.776884,215.97,215.84,1.5767]
[1734502632831,7.23361609,215.89,215.84,1.5767]
[1734502634347,7.23361609,215.9,215.84,1.5767]
[1734502634556,7.23361609,215.9,215.84,8.81031609]
[1734502634755,9.2615,215.95,215.84,8.81031609]
[1734502634756,7.23361609,215.91,215.84,8.81031609]
[1734502637066,7.23361609,215.9,215.84,1.5767]
[1734502637433,7.23361609,215.88,215.84,1.5767]
[1734502637628,7.23361609,215.87,215.84,1.5767]
[1734502638352,7.23361609,215.85,215.78,1.6371]
[1734502638656,7.23361609,215.82,215.78,1.6371]
[1734502640363,7.23361609,215.83,215.78,1.6371]
[1734502641027,7.23361609,215.84,215.78,1.6371]
[1734502641452,7.23361609,215.83,215.78,1.6371]
[1734502643277,7.23361609,215.82,215.78,1.6371]
[1734502644386,7.23361609,215.83,215.78,1.6371]
[1734502646482,20.0,215.89,215.78,1.6371]
[1734502646661,7.23361609,215.83,215.78,1.6371]
[1734502647478,7.23361609,215.93,215.83,23.776884]
[1734502647693,7.23361609,215.93,215.86,7.23361609]
[1734502647984,7.23361609,215.93,215.85,7.23361609]
[1734502648151,6.5699,216.01,215.85,7.23361609]
[1734502648664,7.23361609,215.93,215.85,7.23361609]
[1734502649066,7.23361609,215.94,215.86,7.23361609]
[1734502649366,7.23361609,215.93,215.86,7.23361609]
[1734502650391,7.23361609,215.94,215.87,7.23361609]
[1734502650981,7.23361609,215.94,215.86,7.23361609]
[1734502651189,7.23361609,215.93,215.86,7.23361609]
[1734502655059,23.776884,215.98,215.86,7.23361609]
[1734502655383,7.23361609,215.94,215.86,7.23361609]
[1734502655576,7.23361609,215.94,215.87,7.23361609]
[1734502656193,7.23361609,215.93,215.86,7.23361609]
[1734502657370,7.233617,216.02,215.84,1.5506]
[1734502657371,13.80924358,216.05,215.92,8.79401609]
[1734502657569,7.23361609,216.01,215.94,7.23361609]
[1734502657776,7.23361609,215.98,215.92,1.5604]
[1734502658373,7.23361609,215.99,215.92,8.79401609]
[1734502659211,7.23361609,216.0,215.93,7.23361609]
[1734502660901,7.23361609,216.01,215.94,7.23361609]
[1734502661905,7.23361609,216.0,215.93,7.23361609]
[1734502666083,9.2562,216.07,215.94,7.23361609]
[1734502666300,9.2562,216.07,215.96,7.23361609]
[1734502666301,7.23361609,216.03,215.96,7.23361609]
[1734502667893,7.23361609,216.02,215.95,7.23361609]
[1734502668507,7.23361609,216.03,215.96,7.23361609]
[1734502669401,6.4391,216.09,215.96,7.23361609]
[1734502669601,6.4391,216.09,215.93,24.47134799]
[1734502669602,7.23361609,216.04,215.97,7.23361609]
[1734502670115,9.2536,216.14,216.0,7.23361609]
[1734502670315,7.23361609,216.07,216.0,7.23361609]
[1734502671680,7.23361609,216.07,215.99,1.6563]
[1734502671871,7.23361609,216.07,216.0,7.23361609]
[1734502672077,28.93446436,216.15,215.99,1.6563]
[1734502672078,7.23361609,216.03,215.99,1.6563]
[1734502673181,7.23361609,216.06,215.99,8.88991609]
[1734502674115,20.0,216.11,216.0,7.23361609]
[1734502674285,7.23361609,216.07,216.0,7.23361609]
[1734502674709,7.23361609,216.05,215.99,1.6563]
[1734502675089,7.23361609,216.06,215.99,8.88991609]
[1734502676837,7.23361609,216.03,215.99,1.6563]
[1734502677114,9.2559,216.08,215.96,7.23361609]
[1734502677300,9.2559,216.08,215.93,1.6563]
[1734502677301,7.23361609,216.04,215.97,7.23361609]
[1734502677481,9.2545,216.11,216.0,7.23361609]
[1734502677682,7.23361609,216.07,216.0,8.88991609]
[1734502678123,7.23361609,216.09,216.02,7.23361609]
[1734502678328,7.23361609,216.1,216.03,7.23361609]
[1734502681789,9.2532,216.14,216.03,7.23361609]
[1734502682025,7.23361609,216.1,216.03,7.23361609]
[1734502682523,7.23361609,216.07,216.0,8.0609]
[1734502683016,7.23361609,216.07,216.0,15.29451609]
[1734502683401,7.23361609,216.08,216.01,7.23361609]
[1734502683791,20.0,216.11,216.0,15.29451609]
[1734502683792,7.23361609,216.07,216.0,15.29451609]
[1734502684186,7.23361609,216.07,216.0,1.6563]
[1734502684416,7.23361609,216.06,216.0,1.6563]
[1734502684798,7.23361609,216.08,216.0,1.6563]
[1734502685120,7.23361609,216.07,216.0,1.6563]
[1734502685489,20.0,216.11,216.01,31.01050009]
[1734502685692,9.2532,216.14,216.03,7.23361609]
[1734502685890,7.23361609,216.11,216.04,7.23361609]
[1734502686326,7.23361609,216.1,216.03,7.23361609]
[1734502686788,7.23361609,216.13,216.06,7.23361609]
[1734502688126,2.71985569,216.16,216.03,6.4046]
[1734502688327,7.23361609,216.11,216.04,7.23361609]
[1734502688627,7.23361609,216.12,216.05,7.23361609]
[1734502689805,2.71985569,216.16,216.05,7.23361609]
[1734502690012,7.23361609,216.12,216.05,7.23361609]
[1734502690407,2.71985569,216.16,216.03,6.4046]
[1734502690408,2.71985569,216.16,216.06,7.23361609]
[1734502690592,7.23361609,216.15,216.08,8.88991609]
[1734502691019,20.0,216.18,216.09,7.23361609]
[1734502691340,7.23361609,216.17,216.1,7.23361609]
[1734502691898,7.23361609,216.16,216.09,7.23361609]
[1734502692602,9.2485,216.25,216.08,1.6563]
[1734502692603,7.23361609,216.17,216.1,7.23361609]
[1734502693119,7.23361609,216.16,216.08,1.6563]
[1734502693292,2.82343149,216.21,216.08,8.88991609]
[1734502693293,7.23361609,216.15,216.08,8.88991609]
[1734502693817,9.2506,216.2,216.08,1.6563]
[1734502694030,7.23361609,216.12,216.08,1.6563]
[1734502694412,7.23361609,216.12,216.05,7.23361609]
[1734502694610,6.1158,216.18,216.03,8.0609]
[1734502694611,7.23361609,216.1,216.03,8.0609]
[1734502694812,7.23361609,216.1,216.03,15.29451609]
[1734502695232,7.23361609,216.09,216.03,8.0609]
[1734502695595,7.23361609,216.09,216.03,1.6563]
[1734502695800,7.23361609,216.07,216.03,1.6563]
[1734502695999,7.23361609,216.05,215.98,15.29451609]
[1734502698540,9.2541,216.12,215.98,15.29451609]
[1734502698541,7.23361609,216.04,215.98,8.0609]
[1734502698728,7.23361609,216.04,215.98,1.6563]
[1734502699035,7.23361609,216.03,215.98,1.6563]
[1734502699543,7.23361609,216.04,215.98,1.6563]
[1734502699705,7.23361609,216.05,215.98,8.88991609]
[1734502700122,7.23361609,216.04,215.98,1.6563]
[1734502701111,20.0,216.1,216.0,7.23361609]
[1734502701307,7.23361609,216.08,216.01,7.23361609]
[1734502701813,20.0,216.1,216.01,7.23361609]
[1734502702019,20.0,216.11,216.02,7.23361609]
[1734502702233,7.23361609,216.09,216.02,7.23361609]
[1734502702741,7.23361609,216.12,216.05,7.23361609]
[1734502703128,7.23361609,216.13,216.06,7.23361609]
[1734502703309,7.23361609,216.14,216.07,7.23361609]
[1734502703713,7.23361609,216.13,216.06,7.23361609]
[1734502704110,7.23361609,216.14,216.07,7.23361609]
[1734502704948,27.23361609,216.15,216.07,7.23361609]
[1734502705117,7.23361609,216.14,216.07,7.23361609]
[1734502710120,7.23361609,216.13,216.06,7.23361609]
[1734502710342,7.23361609,216.12,216.05,7.23361609]
[1734502710751,7.23361609,216.11,216.02,6.1868]
[1734502710944,7.23361609,216.08,216.02,6.1868]
[1734502711264,48.93446436,216.15,216.0,7.23361609]
[1734502711265,7.23361609,216.07,216.0,7.23361609]
[1734502711757,7.23361609,216.08,216.01,7.23361609]
[1734502712133,7.23361609,216.07,216.0,7.23361609]
[1734502712462,7.23361609,216.06,216.0,7.23361609]
[1734502713160,7.23361609,216.05,215.97,6.1868]
[1734502713360,7.23361609,216.03,215.97,7.23361609]
[1734502714859,7.23361609,216.05,215.98,8.88991609]